fUSD/lending_fUSD_20250507
["ID","MTS","AMOUNT","RATE_DAILY","PERIOD"]
[360154598,1746579935316,800.22080902,0.00019491,2]
[360154599,1746579940890,-207.4,0.00019502,2]
[360154600,1746579947887,-592.82080902,0.00019502,2]
[360154601,1746579980858,155.38737225,0.0001948,2]
[360154602,1746579999873,353.0,0.0003,30]
[360154603,1746580017284,500.0,0.000195,2]
[360154604,1746580026646,200.0,0.0003,30]
[360154605,1746580030601,207.4,0.000195,2]
[360154606,1746580054541,500.0,0.000195,2]
[360154607,1746580071651,500.0,0.000195,2]
[360154608,1746580075516,1366.52464229,0.00019479,2]
[360154609,1746580077694,500.0,0.000195,2]
[360154610,1746580081520,1366.52464227,0.0001949,2]
[360154611,1746580084568,500.0,0.000195,2]
[360154612,1746580086343,-214.8736581,0.00019502,2]
[360154613,1746580090328,500.0,0.000195,2]
[360154614,1746580097916,-309.079733,0.00019502,2]
[360154615,1746580098342,500.0,0.000195,2]
[360154616,1746580106831,500.0,0.000195,2]
[360154617,1746580110888,155.38737225,0.0001948,2]
[360154618,1746580112945,-150.0,0.00019502,2]
[360154619,1746580127883,-483.44373943,0.00019502,2]
[360154620,1746580129160,500.0,0.0003,30]
[360154621,1746580135558,414.52791966,0.00019479,2]
[360154622,1746580144114,-209.12751174,0.00019502,2]
[360154623,1746580148192,806.57417846,0.00019054,2]
[360154624,1746580149504,806.57417847,0.00019198,2]
[360154625,1746580161622,459.079733,0.00019414,2]
[360154626,1746580187052,155.21405445,0.00019479,2]
[360154631,1746580232268,-151.0,0.00019512,2]
[360154632,1746580232278,-200.0,0.00019513,2]
[360154633,1746580232287,-483.64593635,0.00019513,2]
[360154634,1746580232323,-882.87870592,0.00019513,2]
[360154635,1746580232332,-800.22080902,0.00019514,2]
[360154636,1746580232341,-500.0,0.00019514,2]
[360154637,1746580232351,-162.96249673,0.00019514,2]
[360154638,1746580232360,-376.4813056,0.00019516,2]
[360154639,1746580232369,-200.0,0.00019516,2]
[360154640,1746580232378,-1366.52464227,0.00019525,2]
[360154641,1746580232388,-800.22080902,0.00019525,2]
[360154642,1746580232397,-1200.0,0.00019536,2]
[360154643,1746580232406,-1366.52464227,0.00019536,2]
[360154644,1746580232415,-800.22080902,0.00019537,2]
[360154645,1746580232425,-300.0,0.00019542,2]
[360154646,1746580232434,-300.0,0.00019543,2]
[360154647,1746580232443,-299.99,0.00019544,7]
[360154648,1746580232452,-1366.52464227,0.00019548,2]
[360154649,1746580232464,-800.22080902,0.00019548,2]
[360154650,1746580232474,-151.0,0.00019554,2]
[360154651,1746580232483,-151.0,0.00019554,2]
[360154652,1746580232492,-151.0,0.00019554,2]
[360154653,1746580232503,-155.0,0.00019554,2]
[360154655,1746580232512,-151.0,0.00019554,2]
[360154657,1746580232521,-668.65185757,0.00019554,2]
[360154659,1746580232531,-1366.52464227,0.00019559,2]
[360154660,1746580232540,-800.22080902,0.0001956,2]
[360154662,1746580232550,-450.0,0.00019565,2]
[360154664,1746580232559,-150.99,0.00019566,2]
[360154665,1746580232568,-9578.13,0.00019566,2]
[360154666,1746580232577,-1870.78,0.00019566,2]
[360154667,1746580232586,-163.21,0.00019569,2]
[360154669,1746580232595,-163.21,0.00019569,2]
[360154670,1746580232604,-843.28,0.00019569,2]
[360154671,1746580232613,-1366.52464227,0.00019571,2]
[360154673,1746580232622,-800.22080902,0.00019571,2]
[360154674,1746580232633,-456.1558539,0.00019572,2]
[360154676,1746580232642,-176.8805,0.00019574,2]
[360154678,1746580232651,-435.86188345,0.00019574,2]
[360154679,1746580232661,-159.25241086,0.00019574,2]
[360154681,1746580232670,-500.0,0.00019577,2]
[360154683,1746580232679,-500.0,0.00019577,2]
[360154685,1746580232688,-500.0,0.00019577,2]
[360154686,1746580232697,-500.0,0.00019577,2]
[360154688,1746580232706,-518.51958879,0.00019577,2]
[360154690,1746580232716,-500.0,0.00019577,2]
[360154692,1746580232725,-500.0,0.00019577,2]
[360154693,1746580232734,-500.0,0.00019577,2]
[360154695,1746580232743,-500.0,0.00019577,2]
[360154697,1746580232752,-500.0,0.00019577,2]
[360154699,1746580232761,-500.0,0.00019577,2]
[360154700,1746580232771,-500.0,0.00019577,2]
[360154702,1746580232780,-500.0,0.00019577,2]
[360154704,1746580232789,-500.0,0.00019577,2]
[360154706,1746580232798,-500.0,0.00019577,2]
[360154707,1746580232807,-500.0,0.00019577,2]
[360154709,1746580232816,-500.0,0.00019577,2]
[360154711,1746580232825,-500.0,0.00019577,2]
[360154713,1746580232834,-500.0,0.00019577,2]
[360154714,1746580232843,-500.0,0.00019577,2]
[360154716,1746580232853,-500.0,0.00019577,2]
[360154718,1746580232865,-403.48722748,0.00019577,2]
[360154720,1746580232877,-96.51277252,0.00019577,2]
[360154722,1746580232886,-193.27674539,0.00019577,2]
[360154723,1746580232895,-500.0,0.00019577,2]
[360154725,1746580232904,-500.0,0.00019577,2]
[360154727,1746580232914,-302.78704068,0.00019577,2]
[360154729,1746580232923,-500.0,0.00019577,2]
[360154730,1746580232932,-500.0,0.00019577,2]
[360154732,1746580232942,-500.0,0.00019577,2]
[360154734,1746580232951,-500.0,0.00019577,2]
[360154736,1746580232961,-153.47711545,0.00019578,2]
[360154737,1746580232970,-559.86525835,0.00019578,2]
[360154739,1746580232980,-556.50196717,0.00019578,2]
[360154741,1746580232990,-485.92703002,0.00019578,2]
[360154743,1746580232999,-450.0,0.00019578,2]
[360154744,1746580233008,-450.0,0.00019578,2]
[360154746,1746580233018,-202.94545888,0.00019578,2]
[360154748,1746580233027,-500.0,0.00019578,2]
[360154750,1746580233037,-192.24363385,0.00019578,2]
[360154751,1746580233047,-500.0,0.00019578,2]
[360154753,1746580233057,-500.0,0.00019578,2]
[360154755,1746580233066,-504.27154959,0.00019578,2]
[360154756,1746580233075,-500.0,0.00019578,2]
[360154758,1746580233084,-500.0,0.00019578,2]
[360154760,1746580233093,-450.0,0.00019578,2]
[360154762,1746580233103,-451.76,0.00019578,2]
[360154763,1746580233112,-450.0,0.00019578,2]
[360154765,1746580233121,-2449.84,0.00019578,2]
[360154767,1746580233131,-450.0,0.00019578,2]
[360154769,1746580233140,-1867.13,0.00019578,2]
[360154770,1746580233150,-450.0,0.00019578,2]
[360154771,1746580233159,-1328.15,0.00019578,2]
[360154772,1746580233169,-450.0,0.00019578,2]
[360154773,1746580233178,-610.39,0.00019578,2]
[360154774,1746580233187,-450.0,0.00019578,2]
[360154775,1746580233197,-450.0,0.00019578,2]
[360154776,1746580233206,-584.56,0.00019578,2]
[360154777,1746580233215,-450.0,0.00019578,2]
[360154778,1746580233225,-450.0,0.00019578,2]
[360154779,1746580233379,-470.0,0.00019578,2]
[360154781,1746580233388,-450.0,0.00019578,2]
[360154783,1746580233398,-450.0,0.00019578,2]
[360154785,1746580233407,-450.0,0.00019578,2]
[360154787,1746580233416,-450.0,0.00019578,2]
[360154789,1746580233425,-623.49,0.00019578,2]
[360154791,1746580233435,-623.49,0.00019578,2]
[360154793,1746580233444,-450.0,0.00019578,2]
[360154795,1746580233454,-450.0,0.00019578,2]
[360154797,1746580233467,-547.9,0.00019578,2]
[360154798,1746580233476,-547.9,0.00019578,2]
[360154799,1746580233485,-450.0,0.00019578,2]
[360154800,1746580233495,-470.0,0.00019578,2]
[360154801,1746580233505,-450.0,0.00019578,2]
[360154802,1746580233514,-450.0,0.00019578,2]
[360154803,1746580233523,-450.0,0.00019578,2]
[360154804,1746580233533,-450.0,0.00019578,2]
[360154805,1746580233543,-1064.58,0.00019578,2]
[360154806,1746580233554,-1064.58,0.00019578,2]
[360154807,1746580233564,-552.77,0.00019578,2]
[360154808,1746580233574,-450.0,0.00019578,2]
[360154809,1746580233583,-450.0,0.00019578,2]
[360154810,1746580233593,-450.0,0.00019578,2]
[360154811,1746580233603,-450.0,0.00019578,2]
[360154812,1746580233613,-450.0,0.00019578,2]
[360154813,1746580233623,-450.0,0.00019578,2]
[360154814,1746580233635,-450.0,0.00019578,2]
[360154815,1746580233644,-450.0,0.00019578,2]
[360154816,1746580233653,-2130.62,0.00019578,2]
[360154817,1746580233663,-2130.62,0.00019578,2]
[360154818,1746580233672,-450.0,0.00019578,2]
[360154819,1746580233682,-593.2,0.00019578,2]
[360154820,1746580233692,-593.2,0.00019578,2]
[360154821,1746580233702,-1623.66,0.00019578,2]
[360154822,1746580233711,-450.0,0.00019578,2]
[360154823,1746580233722,-450.0,0.00019578,2]
[360154824,1746580233731,-450.0,0.00019578,2]
[360154825,1746580233741,-1576.67,0.00019578,2]
[360154826,1746580233750,-1576.67,0.00019578,2]
[360154827,1746580233760,-518.29,0.00019578,2]
[360154828,1746580233769,-450.0,0.00019578,2]
[360154829,1746580233779,-1728.98,0.00019578,2]
[360154830,1746580233789,-450.0,0.00019578,2]
[360154831,1746580233800,-450.0,0.00019578,2]
[360154832,1746580233810,-450.0,0.00019578,2]
[360154833,1746580233819,-450.0,0.00019578,2]
[360154834,1746580233828,-450.0,0.00019578,2]
[360154835,1746580233838,-307.6,0.00019578,2]
[360154836,1746580233847,-450.0,0.00019578,2]
[360154837,1746580233856,-450.0,0.00019578,2]
[360154838,1746580233866,-860.93,0.00019578,2]
[360154839,1746580233876,-450.0,0.00019578,2]
[360154840,1746580233885,-450.0,0.00019578,2]
[360154841,1746580233895,-816.19,0.00019578,2]
[360154842,1746580233904,-450.0,0.00019578,2]
[360154843,1746580233913,-450.0,0.00019578,2]
[360154844,1746580233923,-450.0,0.00019578,2]
[360154845,1746580233932,-450.0,0.00019578,2]
[360154846,1746580233941,-473.95,0.00019578,2]
[360154847,1746580233951,-865.24,0.00019578,2]
[360154848,1746580233960,-166.933407,0.00019578,2]
[360154849,1746580233969,-500.0,0.00019578,2]
[360154850,1746580233978,-363.04451063,0.00019578,2]
[360154851,1746580233990,-841.86548937,0.00019578,2]
[360154852,1746580234000,-1204.91,0.00019578,2]
[360154853,1746580234011,-311.8265759,0.00019578,2]
[360154854,1746580234027,-138.1734241,0.00019578,2]
[360154855,1746580234037,-450.0,0.00019578,2]
[360154856,1746580234047,-450.0,0.00019578,2]
[360154857,1746580234057,-450.0,0.00019578,2]
[360154858,1746580234067,-2238.552649,0.00019578,2]
[360154859,1746580234077,-2238.552649,0.00019578,2]
[360154860,1746580234087,-467.4,0.00019578,2]
[360154861,1746580234096,-450.0,0.00019578,2]
[360154862,1746580234106,-450.0,0.00019578,2]
[360154863,1746580234115,-450.0,0.00019578,2]
[360154864,1746580234124,-450.0,0.00019578,2]
[360154865,1746580234133,-400.01635004,0.00019578,2]
[360154866,1746580234142,-233.22521516,0.00019578,2]
[360154867,1746580234157,-216.77478484,0.00019578,2]
[360154868,1746580234166,-450.0,0.00019578,2]
[360154869,1746580234176,-1634.73,0.00019578,2]
[360154870,1746580234185,-1634.73,0.00019578,2]
[360154871,1746580234195,-450.0,0.00019578,2]
[360154872,1746580234204,-450.0,0.00019578,2]
[360154873,1746580234214,-4753.744666,0.00019578,2]
[360154874,1746580234224,-4753.744666,0.00019578,2]
[360154875,1746580234234,-450.0,0.00019578,2]
[360154876,1746580234243,-450.0,0.00019578,2]
[360154877,1746580234253,-450.0,0.00019578,2]
[360154878,1746580234262,-450.0,0.00019578,2]
[360154879,1746580234272,-1770.957402,0.00019578,2]
[360154880,1746580234282,-1770.957402,0.00019578,2]
[360154881,1746580234291,-450.0,0.00019578,2]
[360154882,1746580234301,-450.0,0.00019578,2]
[360154883,1746580234310,-450.0,0.00019579,2]
[360154884,1746580234319,-450.0,0.00019579,2]
[360154885,1746580234329,-497.0,0.00019579,2]
[360154886,1746580234339,-515.7572433,0.00019579,2]
[360154887,1746580234348,-530.0,0.00019579,2]
[360154888,1746580234357,-450.0,0.00019579,2]
[360154889,1746580234367,-327.93539322,0.00019579,2]
[360154890,1746580234377,-450.0,0.00019579,2]
[360154891,1746580234386,-450.0,0.00019579,2]
[360154892,1746580234396,-206.95380582,0.00019579,2]
[360154893,1746580234405,-450.0,0.00019579,2]
[360154894,1746580234415,-450.0,0.00019579,2]
[360154895,1746580234425,-451.36733697,0.00019579,2]
[360154896,1746580234434,-450.0,0.00019579,2]
[360154897,1746580234444,-450.0,0.00019579,2]
[360154898,1746580234454,-450.0,0.00019579,2]
[360154899,1746580234466,-310.38964932,0.00019579,2]
[360154900,1746580234478,-139.61035068,0.00019579,2]
[360154901,1746580234488,-450.0,0.00019579,2]
[360154902,1746580234498,-350.21022126,0.00019579,2]
[360154912,1746580238171,-450.0,0.00019578,2]
[360154914,1746580238180,-450.0,0.00019578,2]
[360154919,1746580238307,-1099.0346228,0.00019578,2]
[360154920,1746580238340,-280.407,0.00019578,2]
[360154921,1746580238355,-517.3383772,0.00019578,2]
[360154922,1746580238364,-450.0,0.00019578,2]
[360154923,1746580238374,-450.0,0.00019578,2]
[360154924,1746580238383,-450.0,0.00019578,2]
[360154925,1746580238393,-450.0,0.00019578,2]
[360154926,1746580238403,-102.2848438,0.00019579,2]
[360154927,1746580238412,-450.0,0.00019579,2]
[360154928,1746580238421,-450.54443669,0.00019579,2]
[360154929,1746580238431,-268.03023845,0.00019579,2]
[360154930,1746580238440,-524.29260776,0.00019579,2]
[360154931,1746580238450,-67.24251023,0.00019579,2]
[360154932,1746580238465,-460.81932654,0.00019579,2]
[360154933,1746580238475,-400.0,0.00019579,2]
[360154934,1746580238484,-460.95144241,0.00019579,2]
[360154935,1746580238494,-545.87312174,0.00019579,2]
[360154936,1746580238505,-450.0,0.00019579,2]
[360154937,1746580238515,-566.20987366,0.00019579,2]
[360154938,1746580238524,-555.13200951,0.00019579,2]
[360154939,1746580238533,-450.0,0.00019579,2]
[360154940,1746580238544,-450.0,0.00019579,2]
[360154941,1746580238555,-450.0,0.00019579,2]
[360154942,1746580238565,-367.47622614,0.00019579,2]
[360154943,1746580238589,-93.98977445,0.00019579,2]
[360154944,1746580238599,-268.23184865,0.00019579,2]
[360154945,1746580238608,-450.0,0.00019579,2]
[360154946,1746580238617,-455.97831931,0.00019579,2]
[360154947,1746580238626,-184.19005759,0.00019579,2]
[360154948,1746580238638,-375.80994241,0.00019579,2]
[360154949,1746580238647,-290.43005759,0.00019579,2]
[360154950,1746580238659,-159.56994241,0.00019579,2]
[360154951,1746580238668,-450.0,0.00019579,2]
[360154952,1746580238677,-575.31442529,0.00019579,2]
[360154953,1746580238687,-450.0,0.00019579,2]
[360154954,1746580238696,-554.12028134,0.00019579,2]
[360154955,1746580238705,-514.85102482,0.00019579,2]
[360154956,1746580238715,-470.0,0.00019579,2]
[360154957,1746580238724,-450.0,0.00019579,2]
[360154958,1746580238734,-118.84650177,0.00019579,2]
[360154959,1746580238746,-331.15349823,0.00019579,2]
[360154960,1746580238755,-93.72958715,0.00019579,2]
[360154961,1746580238789,-329.807,0.00019578,2]
[360154962,1746580238801,-120.193,0.00019578,2]
[360154963,1746580238810,-282.84328014,0.00019578,2]
[360154966,1746580240500,-167.15671986,0.00019578,2]
[360154967,1746580240511,-32.05424109,0.00019578,2]
[360154968,1746580240583,-328.47396994,0.00019578,2]
[360154969,1746580240595,-89.47178897,0.00019578,2]
[360154970,1746580240604,-356.27041285,0.00019579,2]
[360154971,1746580240614,-470.0,0.00019579,2]
[360154972,1746580240624,-450.0,0.00019579,2]
[360154973,1746580240635,-261.11005959,0.00019579,2]
[360154974,1746580240644,-450.0,0.00019579,2]
[360154975,1746580240654,-450.0,0.00019579,2]
[360154976,1746580240663,-490.0,0.00019579,2]
[360154977,1746580240673,-450.0,0.00019579,2]
[360154978,1746580240683,-408.28915016,0.00019579,2]
[360154979,1746580240692,-450.0,0.00019579,2]
[360154980,1746580240702,-490.0,0.00019579,2]
[360154981,1746580240711,-450.0,0.00019579,2]
[360154982,1746580240720,-450.0,0.00019579,2]
[360154983,1746580240730,-450.0,0.00019579,2]
[360154984,1746580240739,-465.93260653,0.00019579,2]
[360154985,1746580240749,-512.01178802,0.00019579,2]
[360154986,1746580240758,-450.0,0.00019579,2]
[360154987,1746580240767,-450.0,0.00019579,2]
[360154988,1746580240777,-450.0,0.00019579,2]
[360154989,1746580240786,-589.22836499,0.00019579,2]
[360154990,1746580240794,-450.0,0.00019579,2]
[360154991,1746580240805,-450.0,0.00019579,2]
[360154992,1746580240814,-679.75,0.00019579,2]
[360154993,1746580240823,-450.0,0.00019579,2]
[360154994,1746580240832,-450.0,0.00019579,2]
[360154995,1746580240842,-450.0,0.00019579,2]
[360154996,1746580240855,-450.0,0.00019579,2]
[360154997,1746580240864,-450.0,0.00019579,2]
[360154998,1746580240874,-450.0,0.00019579,2]
[360154999,1746580240883,-248.40165005,0.00019579,2]
[360155000,1746580240893,-450.0,0.00019579,2]
[360155001,1746580240902,-450.0,0.00019579,2]
[360155002,1746580240912,-450.0,0.00019579,2]
[360155003,1746580240921,-500.0,0.00019579,2]
[360155004,1746580240931,-450.0,0.00019579,2]
[360155005,1746580240940,-450.0,0.00019579,2]
[360155006,1746580240949,-1076.25,0.00019579,2]
[360155007,1746580240959,-545.47578894,0.00019579,2]
[360155008,1746580240969,-450.0,0.00019579,2]
[360155009,1746580240978,-450.0,0.00019579,2]
[360155010,1746580240987,-450.0,0.00019579,2]
[360155011,1746580240996,-450.0,0.00019579,2]
[360155012,1746580241006,-450.0,0.00019579,2]
[360155014,1746580241015,-474.23893114,0.00019579,2]
[360155015,1746580241024,-450.0,0.00019579,2]
[360155016,1746580241033,-450.0,0.00019579,2]
[360155017,1746580241043,-450.0,0.00019579,2]
[360155018,1746580241053,-450.0,0.00019579,2]
[360155019,1746580241062,-450.0,0.00019579,2]
[360155020,1746580241072,-500.0,0.00019579,2]
[360155021,1746580241081,-581.90308,0.00019579,2]
[360155022,1746580241091,-450.0,0.00019579,2]
[360155023,1746580241100,-450.0,0.00019579,2]
[360155024,1746580241109,-450.0,0.00019579,2]
[360155025,1746580241118,-450.0,0.00019579,2]
[360155026,1746580241128,-450.0,0.00019579,2]
[360155027,1746580241137,-450.0,0.00019579,2]
[360155028,1746580241146,-545.77390001,0.00019579,2]
[360155029,1746580241155,-450.0,0.00019579,2]
[360155030,1746580241164,-450.0,0.00019579,2]
[360155031,1746580241300,-450.0,0.00019579,2]
[360155032,1746580241324,-450.0,0.00019579,2]
[360155033,1746580241336,-450.0,0.00019579,2]
[360155034,1746580241346,-450.0,0.00019579,2]
[360155035,1746580241355,-725.32,0.00019579,2]
[360155036,1746580241364,-450.0,0.00019579,2]
[360155037,1746580241373,-470.0,0.00019579,2]
[360155038,1746580241383,-450.0,0.00019579,2]
[360155039,1746580241392,-450.0,0.00019579,2]
[360155040,1746580241401,-450.0,0.00019579,2]
[360155041,1746580241409,-450.0,0.00019579,2]
[360155042,1746580241418,-400.0,0.00019579,2]
[360155043,1746580241428,-450.0,0.00019579,2]
[360155044,1746580241437,-450.0,0.00019579,2]
[360155045,1746580241446,-450.0,0.00019579,2]
[360155046,1746580241455,-450.0,0.00019579,2]
[360155047,1746580241467,-450.0,0.00019579,2]
[360155048,1746580241476,-218.13582907,0.00019579,2]
[360155049,1746580241485,-450.0,0.00019579,2]
[360155050,1746580241495,-450.0,0.00019579,2]
[360155051,1746580241504,-450.0,0.00019579,2]
[360155052,1746580241515,-450.0,0.00019579,2]
[360155053,1746580241524,-400.0,0.00019579,2]
[360155054,1746580241534,-450.0,0.00019579,2]
[360155055,1746580241543,-450.0,0.00019579,2]
[360155056,1746580241553,-450.0,0.00019579,2]
[360155057,1746580241563,-487.92149048,0.00019579,2]
[360155058,1746580241572,-181.26618818,0.00019579,2]
[360155059,1746580241582,-450.0,0.00019579,2]
[360155060,1746580241591,-450.0,0.00019579,2]
[360155061,1746580241601,-450.0,0.00019579,2]
[360155062,1746580241610,-450.0,0.00019579,2]
[360155063,1746580241619,-450.0,0.00019579,2]
[360155064,1746580241628,-450.0,0.00019579,2]
[360155065,1746580241637,-450.0,0.00019579,2]
[360155066,1746580241647,-470.0,0.00019579,2]
[360155067,1746580241656,-523.17213884,0.00019579,2]
[360155068,1746580241665,-250.0,0.00019579,2]
[360155069,1746580241675,-364.38940204,0.00019579,2]
[360155070,1746580241685,-450.0,0.00019579,2]
[360155071,1746580241694,-545.56186289,0.00019579,2]
[360155072,1746580241704,-450.0,0.00019579,2]
[360155073,1746580241713,-450.0,0.00019579,2]
[360155074,1746580241722,-450.0,0.00019579,2]
[360155075,1746580241731,-442.45364178,0.00019579,2]
[360155076,1746580241741,-551.45509345,0.00019579,2]
[360155077,1746580241750,-510.0,0.00019579,2]
[360155078,1746580241759,-506.94184934,0.00019579,2]
[360155079,1746580241768,-309.65240949,0.00019579,2]
[360155080,1746580241778,-450.0,0.00019579,2]
[360155081,1746580241787,-450.0,0.00019579,2]
[360155082,1746580241796,-579.05,0.00019579,2]
[360155083,1746580241806,-579.05,0.00019579,2]
[360155084,1746580241815,-450.0,0.00019579,2]
[360155085,1746580241824,-570.0,0.00019579,2]
[360155086,1746580241834,-450.0,0.00019579,2]
[360155087,1746580241843,-450.0,0.00019579,2]
[360155088,1746580241852,-450.0,0.00019579,2]
[360155089,1746580241861,-450.0,0.00019579,2]
[360155090,1746580241870,-450.0,0.00019579,2]
[360155091,1746580241883,-450.0,0.00019579,2]
[360155092,1746580241892,-569.61330019,0.00019579,2]
[360155093,1746580241901,-158.27047569,0.00019579,2]
[360155094,1746580241910,-450.0,0.00019579,2]
[360155095,1746580241920,-450.0,0.00019579,2]
[360155096,1746580241931,-510.37494651,0.00019579,2]
[360155097,1746580241940,-450.0,0.00019579,2]
[360155098,1746580241949,-450.0,0.00019579,2]
[360155099,1746580241959,-450.0,0.00019579,2]
[360155100,1746580241968,-470.0,0.00019579,2]
[360155101,1746580241977,-242.37909692,0.00019579,2]
[360155102,1746580241986,-450.0,0.00019579,2]
[360155103,1746580241995,-450.0,0.00019579,2]
[360155104,1746580242005,-450.0,0.00019579,2]
[360155105,1746580242014,-450.0,0.00019579,2]
[360155106,1746580242024,-494.34596469,0.00019579,2]
[360155107,1746580242033,-450.0,0.00019579,2]
[360155108,1746580242042,-450.0,0.00019579,2]
[360155109,1746580242052,-450.0,0.00019579,2]
[360155110,1746580242061,-509.53976315,0.00019579,2]
[360155111,1746580242071,-450.0,0.00019579,2]
[360155112,1746580242080,-450.0,0.00019579,2]
[360155113,1746580242089,-450.0,0.00019579,2]
[360155114,1746580242098,-217.25,0.00019579,2]
[360155115,1746580242108,-587.38,0.00019579,2]
[360155116,1746580242117,-587.38,0.00019579,2]
[360155117,1746580242127,-450.0,0.00019579,2]
[360155118,1746580242136,-511.51689646,0.00019579,2]
[360155119,1746580242145,-450.0,0.00019579,2]
[360155120,1746580242154,-450.0,0.00019579,2]
[360155121,1746580242163,-450.0,0.00019579,2]
[360155122,1746580242173,-496.58,0.00019579,2]
[360155123,1746580242183,-450.0,0.00019579,2]
[360155124,1746580242192,-450.0,0.00019579,2]
[360155125,1746580242201,-450.0,0.00019579,2]
[360155126,1746580242211,-450.0,0.00019579,2]
[360155127,1746580242220,-450.0,0.00019579,2]
[360155128,1746580242229,-450.0,0.00019579,2]
[360155129,1746580242239,-450.0,0.00019579,2]
[360155130,1746580242249,-483.92,0.00019579,2]
[360155131,1746580242258,-500.0,0.00019579,2]
[360155132,1746580242267,-450.0,0.00019579,2]
[360155133,1746580242276,-450.0,0.00019579,2]
[360155134,1746580242286,-450.0,0.00019579,2]
[360155135,1746580242296,-450.0,0.00019579,2]
[360155136,1746580242307,-450.0,0.00019579,2]
[360155137,1746580242318,-500.0,0.00019579,2]
[360155138,1746580242327,-450.0,0.00019579,2]
[360155139,1746580242336,-450.0,0.00019579,2]
[360155140,1746580242346,-450.0,0.00019579,2]
[360155141,1746580242355,-450.0,0.00019579,2]
[360155142,1746580242365,-450.0,0.00019579,2]
[360155143,1746580242375,-168.77257994,0.00019579,2]
[360155144,1746580242385,-450.0,0.00019579,2]
[360155145,1746580242394,-500.0,0.00019579,2]
[360155146,1746580242404,-450.0,0.00019579,2]
[360155147,1746580242413,-384.92078132,0.00019579,2]
[360155148,1746580242885,-105.07921868,0.00019579,2]
[360155149,1746580242894,-450.0,0.00019579,2]
[360155150,1746580242904,-450.0,0.00019579,2]
[360155151,1746580242913,-470.0,0.00019579,2]
[360155152,1746580242922,-450.0,0.00019579,2]
[360155153,1746580242932,-530.0,0.00019579,2]
[360155154,1746580242942,-450.0,0.00019579,2]
[360155155,1746580242951,-450.0,0.00019579,2]
[360155156,1746580242962,-450.0,0.00019579,2]
[360155157,1746580242971,-470.0,0.00019579,2]
[360155158,1746580242981,-584.99,0.00019579,2]
[360155159,1746580242990,-584.99,0.00019579,2]
[360155161,1746580242999,-450.0,0.00019579,2]
[360155162,1746580243009,-128.16552932,0.00019579,2]
[360155163,1746580243020,-609.97447068,0.00019579,2]
[360155165,1746580243030,-470.0,0.00019579,2]
[360155166,1746580243039,-450.0,0.00019579,2]
[360155167,1746580243048,-582.27581147,0.00019579,2]
[360155168,1746580243059,-450.0,0.00019579,2]
[360155169,1746580243068,-2000.0,0.00019579,2]
[360155170,1746580243077,-450.0,0.00019579,2]
[360155171,1746580243088,-450.0,0.00019579,2]
[360155172,1746580243098,-450.0,0.00019579,2]
[360155173,1746580243107,-470.0,0.00019579,2]
[360155174,1746580243116,-450.0,0.00019579,2]
[360155175,1746580243125,-542.83,0.00019579,2]
[360155176,1746580243134,-542.83,0.00019579,2]
[360155177,1746580243144,-450.0,0.00019579,2]